Cogmind - Beta 15 X1 @@@ ROGUE MODE // 2024.11.09 @ 18:29:24 Player: Sherlockkat Result: Destroyed by Y-54 Guardian with Gatling Laser Performance ------------- Evolutions (0) 0 Regions Visited (3) 600 Robots Destroyed (21) 105 Value Destroyed (562) 562 Prototype IDs (0) 0 Alien Tech Used (0) 0 Bonus (0) 0 TOTAL SCORE: 1267 Bonus ------- None Cogmind --------- Core Integrity 0/250 Matter 290/300 Energy 148/150 System Corruption 0% Temperature Cool (6) Movement Rolling (95) Ox1 Location -7/Recycling Parts ------- > --- POWER (1) -------- Micro Nuclear Core > --- PROPULSION (2) --- Wheel Wheel > --- UTILITY (2) ------ Medium Storage Unit Reactive Plating > --- WEAPON (2) ------- Light Assault Rifle Light Assault Rifle > --- INVENTORY (10) --- Aluminum Leg Aluminum Leg Huge Storage Unit V3-11A's Pendant Light Assault Rifle Grenade Launcher Peak State ------------ > --- POWER ------------ Micro Nuclear Core > --- PROPULSION ------- Wheel Wheel > --- UTILITY ---------- Medium Storage Unit Reactive Plating > --- WEAPON ----------- Light Assault Rifle Grenade Launcher > --- INVENTORY -------- Aluminum Leg Aluminum Leg Huge Storage Unit V3-11A's Pendant Light Assault Rifle Light Assault Rifle [Rating: 12] Favorites ----------- Power Light Ion Engine Engine Light Ion Engine Power Core Micro Nuclear Core Propulsion Light Treads Treads Light Treads Leg Aluminum Leg Wheel Wheel Utility Medium Storage Unit Storage Medium Storage Unit Processor Advanced Targeting Computer Protection Hardened Light Armor Plating Weapon Assault Rifle Energy Gun Small Laser Ballistic Gun Assault Rifle Launcher Grenade Launcher Build | -11 -10 -10 -7 ------- Run | Yrd Mat Sub Rec Slots Evolved . | . . . . Power . | . . . . Propulsion . | . . . . Utility . | . . . . Weapon . | . . . . Parts Attached 19 | 6 4 5 4 Power 3 | 1 . 1 1 Engine 2 | 1 . 1 . Core 1 | . . . 1 Reactor . | . . . . Propulsion 6 | 2 2 2 . Treads 2 | . 2 . . Leg 2 | 2 . . . Wheel 2 | . . 2 . Hover . | . . . . Flight . | . . . . Utility 5 | 1 2 . 2 Device . | . . . . Storage 2 | 1 1 . . Processor 1 | . . . 1 Hackware . | . . . . Protection 2 | . 1 . 1 Artifact . | . . . . Weapon 5 | 2 . 2 1 Energy Gun 1 | 1 . . . Energy Cannon . | . . . . Ballistic Gun 3 | 1 . 1 1 Ballistic Cannon . | . . . . Launcher 1 | . . 1 . Special Weapon . | . . . . Impact Weapon . | . . . . Slashing Weapon . | . . . . Piercing Weapon . | . . . . Special Melee Weapon . | . . . . Unidentified Prototypes . | . . . . Parts Lost 7 | . . 7 . Power 2 | . . 2 . Propulsion 2 | . . 2 . Utility 1 | . . 1 . Weapon 2 | . . 2 . Highest Loss Streak 2 | . . 2 . To Critical Strikes . | . . . . Average Backups 8 | 2 9 9 6 Power . | . 1 . . Propulsion 3 | 1 4 4 2 Utility 1 | . . 1 2 Weapon 3 | . 3 3 2 Tool/Special . | . . . . Unused Backups 3 | . . . 3 Power . | . . . . Propulsion . | . . . . Utility 2 | . . . 2 Weapon 1 | . . . 1 Tool/Special . | . . . . Average Slot Usage (%) 92 | . 95 91 96 Engine 11 | . 14 13 . Core 1 | . . . 11 Treads 19 | . 18 23 . Leg 2 | . 9 . . Wheel 3 | . . . 28 Storage 14 | . 14 14 14 Protection 10 | . 9 11 11 Energy Gun 9 | . 14 9 . Ballistic Gun 14 | . 14 14 15 Launcher 3 | . . 2 12 Peak Build Rating 12 | 6 9 9 12 Average Rating 8 | 4 8 8 11 On Entrance 5 | . 6 9 5 Naked Turns . | . . . . Heaviest Build 30 | 11 21 21 30 Greatest Support 40 | 20 40 40 20 Greatest Overweight (x) 4 | . . 4 1 Average Overweight (x) . | . . . . Largest Inventory Capacity 10 | 8 10 10 10 Average Capacity 9 | 6 9 10 10 Most Carried 10 | 6 10 10 6 Average Carried 8 | 2 9 9 6 Final Capacity 10 | 8 10 10 10 Final Carried 10 | 6 10 6 6 Class Distribution -------------------- 100% | Mutant Dominant Class ---------------- Mutant | -10/Materials Mutant | -10/Subcaves Mutant | -7/Recycling Resources | -11 -10 -10 -7 ----------- Run | Yrd Mat Sub Rec Matter Collected 699 | 269 61 219 150 Remotely . | . . . . Salvage Created 589 | 59 79 451 . Parts 41 | 4 5 32 . Haulers Intercepted 1 | . 1 . . Recyclers Shooed . | . . . . Parts Field Recycled . | . . . . Retrieved Matter . | . . . . Parts Self-Destructed 13 | . . 13 . Prevented . | . . . . Kills | -11 -10 -10 -7 ------- Run | Yrd Mat Sub Rec Combat Hostiles Destroyed 17 | . 1 16 . Guns 10 | . 1 9 . AOE 7 | . . 7 . Classes Destroyed 6 | 1 2 3 . Hauler 1 | . 1 . . Recycler 1 | 1 . . . Turret 2 | . . 2 . Swarmer 6 | . . 6 . Grunt 1 | . 1 . . Subdweller 10 | . . 10 . Best Kill Streak 3 | 1 2 3 . Combat Bots Only 3 | . 1 3 . Max Kills in Single Turn 3 | 1 1 3 . Gunslinging . | . . . . Exploded 3 | . . 3 . Melee . | . . . . Uniques/NPCs Destroyed . | . . . . Combat | -11 -10 -10 -7 -------- Run | Yrd Mat Sub Rec Hostile Shots Fired 146 | . . 143 3 Missed 65 | . . 63 2 Damage Taken 1134 | . . 1124 10 Core 250 | . . 240 10 Absorbed by Shields . | . . . . Core Remaining (%) 100 | 100 . . . Volleys Fired 65 | 3 7 55 . Largest 2 | 2 2 2 . Hottest 60 | 60 60 60 . Shots Fired 102 | 6 14 82 . Gun 85 | 6 14 65 . Cannon . | . . . . Launcher 17 | . . 17 . Special . | . . . . Kinetic 53 | 3 7 43 . Thermal 32 | 3 7 22 . Explosive 17 | . . 17 . Electromagnetic . | . . . . Robot Hit Streak 28 | 5 3 28 . Robot Miss Streak 3 | 1 3 3 . Penetration Max . | . . . . Secondary Targets . | . . . . Shots Hit Robots 74 | 5 7 62 . Core Hits 44 | 2 3 39 . Critical Kills . | . . . . Critical Parts Destroyed 1 | . . 1 . Critical Strikes 1 | . . 1 . Destroy 1 | . . 1 . Melee Attacks . | . . . . Impact . | . . . . Slashing . | . . . . Piercing . | . . . . Sneak Attacks . | . . . . Combat Hostiles . | . . . . Follow-up Attacks . | . . . . Damage Inflicted 1474 | 60 98 1316 . Guns 767 | 60 98 609 . Cannons . | . . . . Explosions 707 | . . 707 . Melee . | . . . . Ramming . | . . . . Kinetic 527 | 37 67 423 . Thermal 240 | 23 31 186 . Explosive 707 | . . 707 . Electromagnetic . | . . . . Impact . | . . . . Slashing . | . . . . Piercing . | . . . . Highest Corruption . | . . . . Average Corruption . | . . . . Corruption Purged . | . . . . Corruption Blocked . | . . . . Overload Shots . | . . . . Overflow Damage 9 | . . 9 . Projectiles . | . . . . Explosions 9 | . . 9 . Melee . | . . . . Knockbacks . | . . . . Impact . | . . . . Kinetic . | . . . . Secondary . | . . . . Self-Inflicted Damage . | . . . . Shots . | . . . . Rammed . | . . . . Targets Rammed . | . . . . Kicked . | . . . . Crushed . | . . . . Highest Temperature 244 | . . 244 . Average Temperature 138 | . . 138 . Received Heat Transfer 625 | . . 619 6 Siege Activations . | . . . . Martial Activations . | . . . . Shielding Activations . | . . . . Robots Disrupted . | . . . . Combat Hostiles . | . . . . Robots Corrupted . | . . . . Combat Hostiles . | . . . . Parts Fried . | . . . . Impact Corruptions . | . . . . Robots Melted . | . . . . Combat Hostiles . | . . . . Parts Melted 1 | . . 1 . Heat Transferred 550 | 50 75 425 . Parts Sabotaged . | . . . . Parts Stolen . | . . . . Parts Stripped . | . . . . Power Chain Reactions . | . . . . Alert | -11 -10 -10 -7 ------- Run | Yrd Mat Sub Rec Maximum Alert Level . | . . . . Low Security (%) 100 | 100 100 . 100 Level 1 . | . . . . Level 2 . | . . . . Level 3 . | . . . . Level 4 . | . . . . Level 5 . | . . . . High Security . | . . . . Max Security . | . . . . Peak Influence 62 | 5 20 . 62 Initial 62 | . . . 62 Average 5 | . 1 . 12 Influence Increases 262 | 5 27 230 . Destroy 0b10 Robot/C 180 | . 20 160 . Destroy 0b10 Robot/NC 10 | 5 5 . . Destroy Leader 12 | . 2 10 . Lose Combat Pursuer 60 | . . 60 . Influence Decreases 193 | 5 27 99 62 Time Decay 163 | 5 27 69 62 Lost Part 30 | . . 30 . Squads Dispatched . | . . . . Investigation . | . . . . Extermination . | . . . . Reinforcement . | . . . . Assault . | . . . . Garrison . | . . . . Intercept . | . . . . Searches Triggered . | . . . . Construction Impeded . | . . . . Haulers Reinforced . | . . . . Active Scanning Responses . | . . . . Cargo Convoy Interrupts . | . . . . Stealth | -11 -10 -10 -7 --------- Run | Yrd Mat Sub Rec Distress Signals 1 | . 1 . . Communications Jammed . | . . . . Distress Signals . | . . . . Times Spotted 25 | . 2 21 2 Peak Tracking Total 5 | . 1 5 . Tactical Retreats 1 | . . 1 . Traps | -11 -10 -10 -7 ------- Run | Yrd Mat Sub Rec Traps Triggered . | . . . . Indirectly . | . . . . Trap Hack Attempts . | . . . . Triggered . | . . . . Disarmed . | . . . . Reprogrammed . | . . . . Reused . | . . . . Traps Extracted . | . . . . Installed . | . . . . Triggered . | . . . . Machines | -11 -10 -10 -7 ---------- Run | Yrd Mat Sub Rec Machines Disabled 3 | . . 3 . Max in Single Turn 3 | . . 3 . Machines Repaired . | . . . . Machines Dismantled . | . . . . Machines Sabotaged . | . . . . Overloaded Fab Kills . | . . . . Hacking | -11 -10 -10 -7 --------- Run | Yrd Mat Sub Rec Machines Accessed 1 | . . . 1 Terminals 1 | . . . 1 Fabricators . | . . . . Repair Stations . | . . . . Recycling Units . | . . . . Scanalyzers . | . . . . Garrison Access . | . . . . Total Hacks 2 | . . . 2 Successful . | . . . . Failed 2 | . . . 2 Catastrophic . | . . . . Database Lockouts . | . . . . Manual . | . . . . Terminals 2 | . . . 2 Fabricators . | . . . . Repair Stations . | . . . . Recycling Units . | . . . . Scanalyzers . | . . . . Garrison Access . | . . . . Terminal Hacks . | . . . . Fabricator Hacks . | . . . . Repair Station Hacks . | . . . . Recycling Unit Hacks . | . . . . Scanalyzer . | . . . . Garrison Access Hacks . | . . . . Unauthorized Hacks . | . . . . Terminals . | . . . . Fabricators . | . . . . Repair Stations . | . . . . Recycling Units . | . . . . Scanalyzers . | . . . . Garrison Access . | . . . . Data Cores Recovered . | . . . . Used . | . . . . Hacking Detections 1 | . . . 1 Full Trace Events . | . . . . Feedback Events . | . . . . Feedback Blocked . | . . . . Robot Schematics Acquired . | . . . . Robots Built . | . . . . Authchips . | . . . . Time . | . . . . Total Robot Build Rating . | . . . . Part Schematics Acquired . | . . . . Parts Built . | . . . . Authchips . | . . . . Time . | . . . . Total Part Build Rating . | . . . . Parts Repaired . | . . . . Time . | . . . . Parts Recycled . | . . . . Recycled Matter . | . . . . Retrieved Matter . | . . . . Retrieved Components . | . . . . Parts Scanalyzed . | . . . . Part Schematics Acquired . | . . . . Parts Damaged . | . . . . Bothacking | -11 -10 -10 -7 ------------ Run | Yrd Mat Sub Rec Used RIF Installer . | . . . . Robots Hacked . | . . . . Non-combat . | . . . . Combat . | . . . . Robot Hacks Applied . | . . . . Relay Couplers Released . | . . . . Fabnet Peak Effective % . | . . . . Robots Rewired . | . . . . Allies Hacked . | . . . . Hacks Repelled . | . . . . Allies | -11 -10 -10 -7 -------- Run | Yrd Mat Sub Rec Total Allies . | . . . . Largest Group . | . . . . Highest-Rated Group . | . . . . Highest-Rated Ally . | . . . . Total Orders . | . . . . Ally Attacks . | . . . . Total Damage . | . . . . Kills . | . . . . Allies Corrupted . | . . . . Allies Melted . | . . . . Intel | -11 -10 -10 -7 ------- Run | Yrd Mat Sub Rec Active Infowar (turns) . | . . . . Robot Analysis Total . | . . . . Derelict Logs Recovered . | . . . . Drone Launches . | . . . . Drone Recoveries . | . . . . Exploration | -11 -10 -10 -7 ------------- Run | Yrd Mat Sub Rec Turns Passed 2750 | 88 577 1745 340 Spaces Moved 1748 | 60 375 952 361 Core 20 | 10 . 10 . Treads 1181 | . 241 940 . Legs 184 | 50 134 . . Wheels 363 | . . 2 361 Hover . | . . . . Flight . | . . . . Fastest Speed 50 | 50 120 80 80 Average Speed 144 | 108 145 165 92 Slowest Speed 250 | 120 160 250 95 Overloaded Moves . | . . . . Propulsion Burnouts . | . . . . Robots Hopped . | . . . . Cave-ins Triggered . | . . . . Exploration Rate (%) 49 | 3 51 69 74 Regions Visited 3 Branch Regions 2 Pre-discovered Areas 1 | . . 1 . Known Exits Taken . | . . . . Unknown Exits Taken 3 | 1 1 1 . Scrap Searched 3 | . . 3 . Spaces Dug . | . . . . Terrain Destroyed 39 | . . 39 . Melee . | . . . . Projectile . | . . . . AOE 39 | . . 39 . Terrain Rammed . | . . . . Walls Destroyed . | . . . . Machines Disabled . | . . . . Actions | -11 -10 -10 -7 --------- Run | Yrd Mat Sub Rec Total 1869 | 74 391 1038 366 Wait 23 | . . 23 . Move 1745 | 59 374 951 361 Hop . | . . . . Pick Up 11 | 6 4 1 . Fast Attach 11 | 6 2 . 3 Attach 5 | . . 5 . Detach 2 | . 1 . 1 Swap 6 | . 2 3 1 Drop 1 | . 1 . . Fire 65 | 3 7 55 . Melee . | . . . . Ram . | . . . . Kick . | . . . . Crush . | . . . . Escape Stasis . | . . . . Rewire . | . . . . Trap . | . . . . Miscellaneous . | . . . . Route ------- -11/Scrapyard -10/Materials (discovered 3 exits: [*Mat] / [*Min] / [*Sub]) -10/Subcaves (discovered 2 exits: [*Mat] / *Rec) -7/Recycling (discovered 1 exit: [*Fac]) History --------- Turn | Location | Event 9 | -11/Scrapyard | Discovered new exit (range 16) 89 | -11/Scrapyard | Entered Materials 90 | -10/Materials | Met a group of wandering Federalists 136 | -10/Materials | Discovered new exit (range 8) 254 | -10/Materials | Discovered new exit (range 3) 301 | -10/Materials | Discovered new exit (range 15) 302 | -10/Materials | Build established: Mutant 666 | -10/Materials | Entered Subcaves 667 | -10/Subcaves | Continued accompanying wandering Federalists (5) 667 | -10/Subcaves | Approached by a straggling Scientist 848 | -10/Subcaves | Learned location of Zion (-7) 848 | -10/Subcaves | Met a Zionite searching for "candidates" 1386 | -10/Subcaves | Shifting Twisted Machinery released Mak. Light Armor Plating 1641 | -10/Subcaves | Visited triangular shrine 1651 | -10/Subcaves | Found Prototype Device 1714 | -10/Subcaves | Discovered new exit (range 7) 1762 | -10/Subcaves | Core integrity fell below 50% 1834 | -10/Subcaves | A swath of the cavern ceiling suddenly collapsed 1886 | -10/Subcaves | Disturbed a concealed Subdweller 2360 | -10/Subcaves | Discovered new exit (range 14) 2369 | -10/Subcaves | Core integrity fell below 20% 2411 | -10/Subcaves | Entered Recycling 2562 | -7/Recycling | Discovered new exit (range 16) 2751 | -7/Recycling | Destroyed by Y-54 Guardian with Gatling Laser Last Messages --------------- 02370_ Flight Unit fries itself beyond repair. 02370_ Lgt. Ion Engine destroyed. 02375_ The unstable cave ceiling collapses. 02378_ Destroyed Autobeam. 02378_ Autobeam Turret destroyed. 02385_ The unstable cave ceiling collapses. 02386_ Acquired 15 matter. 02391_ Acquired 2 matter. LOCATION=UNKNOWN GOAL=ESCAPE 02432_ Acquired Adv. Targeting Computer. 02439_ Connecting with Terminal... 02439_ Current location identified: Recycling 02461_ Discarded Adv. Targeting Computer. 02462_ Acquired Reactive Plating. 02464_ Acquired Mic. Nuclear Core. 02467_ Acquired 81 matter. 02527_ Acquired 69 matter. 02562_ EXIT=FOUND 02751_ Y-54 Guardian springs to life. Map ----- +----------------------------------------------------+ | ??????????????????????????????????????????????? | | ??????????????????????????????????????????????? | | ??????????????????????????????????????????????? | | ??????????????????????????????????????????????? | | ??????????????????????????????????????????????? | | ??????????????????????????????????????????????? | | ??????????????????????????????????????????????? | | ??????????????????????????????????????????????? | | ??????????????????????????????????????????????? | | ??????????????????????????????????????????????? | | ??????????????????????????????????????????????? | | ??????????????????????????????????????????????? | | ?????????????????#????????????????????????????? | | ?????????????????# ?#####?????????????????????? | | ?????????????????# ?#!! #?????????????######### | | ??????????????#### ##!!!####??????????# """ """ | | ??????????????# +??????????# """ """ | | ??????????????# r ####??###??# """ """ | | ???????????#### r ##Y####Y#### | | ???????????+ r + | | ???????????# #######+# | | ???????????# r | | ???????????# r | | ???????????+ | | ???????????# | | ???????????# @ #!! # | | ???????????# ########## # !!# | | ????????????????????????# ##### | | ????????????????????????# #???# | | ????????????????????????###### ####+#####+## | | ?????????????????????????????# #??# % # | | ?????????????????????????????# #??# !! ] # | | ?????????????????????#########+#??# ! # | | ?????????????????????# #??# ![ # " | | ?????????????????????# #??# ! # " | | ?????????????????????# #??# # " | | ????????????????????# #??# ! = # | | ????????????????????## #??# ] # | | ?????????????????????# #??# = # " | | ?????????????????????# ??# # " | | ?????????????????????# ##?# [ # " | | ?????????????????????#####+#####??# ! # | | ??????????????????????????????????# + | | ??????????????????????????????????# # | | ??????????????????????????????????# ## | | ??????????????????????????????????# ## | | ??????????????????????????????????# %## | | ??????????????????????????????????#! !*## # | | ??????????????????????????????????########### # | | ???? ?????????????????????????????????????# # | +----------------------------------------------------+ Best States ------------- Heat Dissipation 25 Energy Generation 15 Energy Capacity 150 Matter Stores 300 Matter Capacity 300 Sight Range 16 Terrain Scan Density 10 Armor Coverage 150 Resistance: KI 20 Evasion (%) 55 Targeting Accuracy 8 Recoil Reduction 2 Item Schematics ----------------- None Robot Schematics ------------------ None Fabricated ------------ Nothing Repaired ---------- Nothing Alien Tech Used ----------------- None Achievements -------------- None Challenges ------------ None Game ------ Seed LayeredBraceScanner Manual? 0 Play Time 00:14:04 Cumulative 494.0 hours Start 2024.11.09 @ 18:17:13 End 2024.11.09 @ 18:29:24 Sessions 1 Manual Loads 0 Difficulty Rogue Special Mode None Game No. 546 Rogue 546 Adventurer 0 Explorer 0 Win Type - Total 46 Types 24/3/14/1/1/0/3/0/0 Lore% 75 Gallery% 81 Achievement% 69 Wizard Run 0 Options --------- Layout 1 ASCII 1 Keyboard 1 Movement Numpad Keybinds 0 Fullscreen 1 Font 24/Tamsyn Map View 50x35 Zoom Use 0% Tactical HUD 1 Map Filters NONE Filters NONE Steam 1 RUN: 46315714-62fb-4e1c-91e8-736637cf06c8